[Event "Chile-ch Women 2019"]
[Site "Santiago Las Condes"]
[Date "2019.02.14"]
[Round "5.6"]
[White "Lemus Pena, Macarena"]
[Black "Vildosola Canales, Melany"]
[Result "1/2-1/2"]
[ECO "D00"]
[WhiteElo "1757"]
[BlackElo "1531"]
[Annotator "NA RC"]
[PlyCount "117"]
[EventDate "2019.02.12"]
[EventType "swiss"]
[EventCountry "CHI"]
[SourceTitle "playchess.com"]
[Source "ChessBase"]
[SourceQuality "1"]
[TimeControl "5400+30"]

1. Nf3 {[%emt 0:00:00]} Nf6 {[%emt 0:03:41]} 2. d4 {[%emt 0:00:00]} d5 {[%emt 0:00:10]} 3. Bf4 {[%emt 0:00:35]} g6 {[%emt 0:01:32]} 4. Nc3 {[%emt 0:00:19]} Bg7 {[%emt 0:05:49]} 5. e3 {[%emt 0:00:46]} O-O {[%emt 0:04:32]} 6. Be2 {[%emt 0:00:16]} c5 {[%emt 0:01:38]} 7. Ne5 {[%emt 0:05:08]} Nbd7 {[%emt 0:05:54]} 8. h4 {[%emt 0:00:18]} cxd4 {[%emt 0:09:38]} 9. exd4 {[%emt 0:00:13]} Nxe5 {[%emt 0:00:23]} 10. Bxe5 {[%emt 0:00:11]} Ne4 {[%emt 0:02:11]} 11. Bxg7 {[%emt 0:05:07]} Nxc3 {[%emt 0:07:55]} 12. Qd2 {[%emt 0:00:50]} Kxg7 {[%emt 0:10:36]} 13. Qxc3 {[%emt 0:00:10]} Bf5 {[%emt 0:01:39]} 14. Qd2 {[%emt 0:00:16]} Rc8 {[%emt 0:01:20]} 15. c3 {[%emt 0:00:39]} h5 {[%emt 0:03:40]} 16. g4 {[%emt 0:01:36]} hxg4 {[%emt 0:10:39]} 17. h5 {[%emt 0:00:08]} Rh8 {[%emt 0:05:03]} 18. h6+ {[%emt 0:02:17]} Kh7 {[%emt 0:00:09]} 19. Rg1 {[%emt 0:06:12]} Qd7 {[%emt 0:03:57]} 20. Qf4 {[%emt 0:01:02]} Qe6 {[%emt 0:02:16]} 21. Kd2 {[%emt 0:00:37]} Qe4 {[%emt 0:06:19]} 22. Qxe4 {[%emt 0:00:06]} dxe4 {[%emt 0:01:27]} 23. Bxg4 {[%emt 0:09:53]} Bxg4 {[%emt 0:03:56]} 24. Rxg4 {[%emt 0:00:07]} f5 {[%emt 0:00:57]} 25. Rh4 {[%emt 0:00:05]} g5 {[%emt 0:00:23]} 26. Rh5 {[%emt 0:00:48]} Kg6 {[%emt 0:00:34]} 27. Rah1 {[%emt 0:00:11]} Rh7 {[%emt 0:00:33]} 28. Ke3 {[%emt 0:01:15]} Rch8 {[%emt 0:00:26]} 29. c4 {[%emt 0:04:03]} Rxh6 {[%emt 0:00:09]} 30. Rxh6+ {[%emt 0:00:07]} Rxh6 {[%emt 0:00:07]} 31. Rg1 {[%emt 0:00:14]} Rh3+ {[%emt 0:00:40]} 32. Ke2 {[%emt 0:02:43]} f4 {[%emt 0:01:05]} 33. c5 {[%emt 0:02:58]} Kf5 {[%emt 0:00:45]} 34. Rc1 {[%emt 0:01:17]} Rd3 {[%emt 0:02:13]} 35. c6 {[%emt 0:00:13]} bxc6 {[%emt 0:00:48]} 36. Rxc6 {[%emt 0:00:08]} f3+ {[%emt 0:02:36]} 37. Ke1 {[%emt 0:00:07]} Kf4 {[%emt 0:00:51]} 38. d5 {[%emt 0:04:19]} e3 {[%emt 0:01:05]} 39. Rc4+ {[%emt 0:00:10]} Ke5 {[%emt 0:00:43]} 40. fxe3 {[%emt 0:00:09]} Rxe3+ {[%emt 0:00:26]} 41. Kf2 {[%emt 0:00:28]} Re4 {[%emt 0:00:27]} 42. Rc7 {[%emt 0:00:20]} Kxd5 {[%emt 0:00:45]} 43. Kxf3 {[%emt 0:00:49]} Rf4+ {[%emt 0:00:33]} 44. Kg3 {[%emt 0:00:14]} e5 {[%emt 0:00:45]} 45. Rxa7 {[%emt 0:00:06]} e4 {[%emt 0:00:33]} 46. Ra5+ {[%emt 0:00:05]} Kd4 {[%emt 0:00:23]} 47. Rxg5 {[%emt 0:00:45]} Rf3+ {[%emt 0:00:31]} 48. Kg2 {[%emt 0:00:06]} Rf6 {[%emt 0:00:16]} 49. Rg8 {[%emt 0:11:07]} Kd3 {[%emt 0:00:33]} 50. Rd8+ {[%emt 0:01:48]} Kc2 {[%emt 0:00:15]} 51. a4 {[%emt 0:01:43]} e3 {[%emt 0:00:10]} 52. Re8 {[%emt 0:00:38]} Kd2 {[%emt 0:00:09]} 53. Rd8+ {[%emt 0:00:05]} Kc2 {[%emt 0:00:20]} 54. Re8 {[%emt 0:00:11]} Kd2 {[%emt 0:01:17]} 55. a5 {[%emt 0:01:25]} Kd3 {[%emt 0:01:13]} 56. b4 {[%emt 0:05:08]} e2 {[%emt 0:00:22]} 57. Rd8+ {[%emt 0:01:44]} Kc2 {[%emt 0:00:08]} 58. Re8 {[%emt 0:00:12]} Kd2 {[%emt 0:00:38]} 59. Rd8+ {[%emt 0:37:03]} 1/2-1/2

[Event "Chile-ch Women 2019"]
[Site "Santiago Las Condes"]
[Date "2019.02.14"]
[Round "5.7"]
[White "Melipichun Torres, Katerine"]
[Black "Urrutia Cordova, Camila"]
[Result "0-1"]
[ECO "E81"]
[WhiteElo "1640"]
[BlackElo "1694"]
[Annotator "NA RC"]
[PlyCount "96"]
[EventDate "2019.02.12"]
[EventType "swiss"]
[EventCountry "CHI"]
[SourceTitle "playchess.com"]
[Source "ChessBase"]
[SourceQuality "1"]
[TimeControl "5400+30"]

1. d4 {[%emt 0:00:00]} Nf6 {[%emt 0:00:00]} 2. c4 {[%emt 0:00:00]} g6 {[%emt 0:00:00]} 3. Nc3 {[%emt 0:00:00]} Bg7 {[%emt 0:00:00]} 4. e4 {[%emt 0:00:00]} d6 {[%emt 0:00:07]} 5. f3 {[%emt 0:00:05]} O-O {[%emt 0:00:58]} 6. Be3 {[%emt 0:00:12]} Nc6 {[%emt 0:00:57]} 7. d5 {[%emt 0:01:42]} Ne5 {[%emt 0:00:18]} 8. Qd2 {[%emt 0:00:26]} c5 {[%emt 0:01:36]} 9. Bd3 {[%emt 0:00:49]} a6 {[%emt 0:02:05]} 10. a4 {[%emt 0:00:41]} Rb8 {[%emt 0:02:17]} 11. Nge2 {[%emt 0:00:51]} Bd7 {[%emt 0:02:38]} 12. h3 {[%emt 0:04:16]} Nxd3+ {[%emt 0:16:03]} 13. Qxd3 {[%emt 0:00:13]} Ne8 {[%emt 0:11:08]} 14. g4 {[%emt 0:10:01]} e6 {[%emt 0:00:37]} 15. h4 {[%emt 0:03:26]} f5 {[%emt 0:04:40]} 16. gxf5 {[%emt 0:04:32]} exf5 {[%emt 0:00:29]} 17. Bg5 {[%emt 0:03:52]} Bf6 {[%emt 0:03:09]} 18. f4 {[%emt 0:05:45]} Qe7 {[%emt 0:02:06]} 19. O-O-O {[%emt 0:13:42]} Bxg5 {[%emt 0:02:30]} 20. fxg5 {[%emt 0:01:35]} b5 {[%emt 0:03:00]} 21. axb5 {[%emt 0:07:59]} axb5 {[%emt 0:00:09]} 22. cxb5 {[%emt 0:05:58]} fxe4 {[%emt 0:00:46]} 23. Qxe4 {[%emt 0:00:09]} Qg7 {[%emt 0:08:20]} 24. Nf4 {[%emt 0:12:49]} Bf5 {[%emt 0:05:13]} 25. Qc4 {[%emt 0:06:38]} Qa7 {[%emt 0:02:01]} 26. Kd2 {[%emt 0:04:37]} Qd7 {[%emt 0:05:23]} 27. Ne6 {[%emt 0:03:32]} Rf7 {[%emt 0:01:32]} 28. Ra1 {[%emt 0:03:02]} Ng7 {[%emt 0:03:20]} 29. Rhe1 {[%emt 0:01:27]} Re7 {[%emt 0:00:53]} 30. Ne4 {[%emt 0:03:01]} Bxe4 {[%emt 0:01:27]} 31. Rxe4 {[%emt 0:00:38]} Nxe6 {[%emt 0:10:03]} 32. Rxe6 {[%emt 0:01:13]} Rf7 {[%emt 0:07:48]} 33. Rae1 {[%emt 0:01:49]} Rxb5 {[%emt 0:01:19]} 34. Re8+ {[%emt 0:00:38]} Rf8 {[%emt 0:00:09]} 35. R8e7 {[%emt 0:00:42]} Rxb2+ {[%emt 0:01:01]} 36. Kc1 {[%emt 0:00:25]} Qb5 {[%emt 0:00:27]} 37. Rg7+ {[%emt 0:01:02]} Kxg7 {[%emt 0:01:03]} 38. Qc3+ {[%emt 0:00:15]} Kg8 {[%emt 0:00:21]} 39. Qxb2 {[%emt 0:00:31]} Qc4+ {[%emt 0:00:02]} 40. Kb1 {[%emt 0:00:52]} Qxd5 {[%emt 0:01:23]} 41. Qb5 {[%emt 0:00:27]} Qf5+ {[%emt 0:00:21]} 42. Kc1 {[%emt 0:00:30]} Qf4+ {[%emt 0:00:17]} 43. Kb1 {[%emt 0:00:23]} Qxh4 {[%emt 0:01:29]} 44. Qb3+ {[%emt 0:00:35]} c4 {[%emt 0:00:22]} 45. Qe3 {[%emt 0:00:17]} Qf4 {[%emt 0:00:59]} 46. Qe6+ {[%emt 0:00:23]} Rf7 {[%emt 0:00:36]} 47. Qc8+ {[%emt 0:00:14]} Kg7 {[%emt 0:00:12]} 48. Re8 {[%emt 0:00:29]} Qf5+ {[%emt 0:00:06]} 0-1

[Event "Chile-ch Women 2019"]
[Site "Santiago Las Condes"]
[Date "2019.02.14"]
[Round "5.8"]
[White "Romero Troncoso, Liset Anais"]
[Black "Arbunic Castro, Giovanna"]
[Result "0-1"]
[ECO "B01"]
[WhiteElo "1604"]
[BlackElo "1995"]
[Annotator "NA RC"]
[PlyCount "50"]
[EventDate "2019.02.12"]
[EventType "swiss"]
[EventCountry "CHI"]
[SourceTitle "playchess.com"]
[Source "ChessBase"]
[SourceQuality "1"]
[TimeControl "5400+30"]

{[%evp 25,46,-130,-50,-100,-58,-131,-108,-146,-139,-231,-222,-276,-238,-266,-225,-212,-265,32767,32767,32767,-987,32767,-1217]} 1. e4 {[%emt 0:03:26]} d5 {[%emt 0:00:00]} 2. exd5 {[%emt 0:00:13]} Qxd5 {[%emt 0:00:00]} 3. Nc3 {[%emt 0:00:10]} Qa5 {[%emt 0:00:00]} 4. d4 {[%emt 0:00:15]} Nf6 {[%emt 0:00:00]} 5. Bc4 {[%emt 0:00:15]} c6 {[%emt 0:02:54]} 6. h3 {[%emt 0:01:16]} e6 {[%emt 0:00:16] B01: Scandinavian Defence} (6... Bf5 7. Nf3 e6 8. O-O Bd6 9. Qe2 O-O 10. Ne5 Nbd7 11. Re1 Rfe8 12. g4 Bg6 13. h4 Bxe5 14. dxe5 Nxg4 15. Qxg4 Nxe5 16. Qf4 Nxc4 17. Qxc4 Bxc2 {1-0 (78) Rozentalis,E (2575)-Forchert,M (2420) Bad Wiessee 2011}) 7. Bd2 {[%emt 0:01:47]} Qc7 {[%emt 0:00:06]} 8. Nf3 {[%emt 0:00:42]} Be7 {[%emt 0:00:06]} 9. Qe2 {[%emt 0:01:17]} b5 $146 {[%emt 0:02:21]} ({Predecessor:} 9... Nbd7 10. Bb3 h6 11. g3 a6 12. O-O-O Nb6 13. Ne5 {1-0 (40) Klings,P (2173)-Barbafiera,L (1986) Porto Mannu 2008}) 10. Bb3 {[%emt 0:01:30]} O-O {[%emt 0:00:36]} 11. g4 {[%emt 0:01:09]} b4 {[%emt 0:10:54]} 12. Na4 {[%emt 0:01:36]} c5 {[%emt 0:04:23]} 13. dxc5 {[%emt 0:04:19]} (13. Nxc5 $15 Bxc5 14. dxc5) 13... Bb7 {[%emt 0:03:00]} (13... Ba6 $17 14. Bc4 Qc6 15. Bxa6 Nxa6) 14. Rg1 {[%emt 0:00:54]} a5 {[%emt 0:03:42]} 15. g5 {[%emt 0:08:40] [#]} (15. Ne5 $15) 15... Ne4 $1 {[%emt 0:02:34]} 16. h4 {[%emt 0:03:18]} Nd7 {[%emt 0:01:57]} 17. h5 {[%emt 0:04:14]} (17. Rg4 {might work better.} Nxd2 18. Nxd2) 17... Ndxc5 {[%emt 0:06:11]} 18. g6 {[%emt 0:08:10]} Nxb3 {[%emt 0:04:53]} 19. gxh7+ {[%emt 0:01:33]} Kxh7 {[%emt 0:02:30]} 20. cxb3 {[%emt 0:00:58]} Rac8 {[%emt 0:01:48]} 21. Ng5+ {[%emt 0:11:43]} Bxg5 {[%emt 0:02:39]} 22. Bxg5 {[%emt 0:00:25]} Qh2 {[%emt 0:00:25]} 23. Qf1 {[%emt 0:05:43]} Rc2 $19 {[%emt 0:21:29]} 24. Be3 {[%emt 0:00:49]} Ba6 {[%emt 0:02:42]} 25. Rg2 {[%emt 0:12:12]} Re2+ {[%emt 0:27:04]} 0-1

[Event "Chile-ch Women 2019"]
[Site "Santiago Las Condes"]
[Date "2019.02.15"]
[Round "6.1"]
[White "Jorquera Cabello, Valentina"]
[Black "Reyes Jara, Paula"]
[Result "1-0"]
[ECO "C91"]
[WhiteElo "2016"]
[BlackElo "1955"]
[Annotator "NA RC"]
[PlyCount "81"]
[EventDate "2019.02.12"]
[EventType "swiss"]
[EventCountry "CHI"]
[SourceTitle "playchess.com"]
[Source "ChessBase"]
[SourceQuality "1"]
[TimeControl "5400+30"]

1. e4 {[%emt 0:00:00]} e5 {[%emt 0:06:42]} 2. Nf3 {[%emt 0:00:02]} Nc6 {[%emt 0:00:07]} 3. Bb5 {[%emt 0:00:16]} a6 {[%emt 0:00:07]} 4. Ba4 {[%emt 0:00:04]} Nf6 {[%emt 0:01:03]} 5. O-O {[%emt 0:00:44]} Be7 {[%emt 0:00:14]} 6. Re1 {[%emt 0:03:27]} b5 {[%emt 0:00:37]} 7. Bb3 {[%emt 0:00:09]} O-O {[%emt 0:00:08]} 8. c3 {[%emt 0:00:42]} d6 {[%emt 0:00:10]} 9. d4 {[%emt 0:00:10]} Bg4 {[%emt 0:04:00]} 10. Be3 {[%emt 0:00:41]} Na5 {[%emt 0:03:50]} 11. Bc2 {[%emt 0:00:25]} Nc4 {[%emt 0:00:12]} 12. Bc1 {[%emt 0:00:09]} c5 {[%emt 0:11:05]} 13. b3 {[%emt 0:01:18] C91: Closed Ruy Lopez: 7...d6 8 c3 0-0 9 d4} Nb6 {[%emt 0:04:10]} 14. dxe5 {[%emt 0:02:33]} Bxf3 {[%emt 0:00:16]} 15. Qxf3 {[%emt 0:00:16]} dxe5 {[%emt 0:00:07] LiveBook: 13 Games} 16. Nd2 {[%emt 0:02:43]} Rc8 $146 {[%emt 0:07:36]} ({Predecessor:} 16... Nfd7 17. Nf1 Bg5 18. Ne3 g6 19. Rd1 Qe7 20. a4 Rfd8 {1-0 (29) Fedorchuk,S (2655)-Marholev,D (2364) Nantes 2009}) 17. Qg3 {[%emt 0:14:03]} Qd6 {[%emt 0:05:01]} 18. Nf3 {[%emt 0:09:04]} Nfd7 {[%emt 0:05:46]} 19. Be3 {[%emt 0:06:17]} Rc6 {[%emt 0:05:18]} 20. Red1 {[%emt 0:01:36]} Qc7 {[%emt 0:01:40]} 21. h4 {[%emt 0:05:53]} Re8 {[%emt 0:02:16]} 22. h5 {[%emt 0:03:02]} Bf8 {[%emt 0:09:21]} 23. Rd2 {[%emt 0:10:09]} h6 $11 {[%emt 0:03:26]} 24. Nh4 {[%emt 0:03:56]} Kh7 {[%emt 0:03:04]} 25. Rad1 {[%emt 0:14:19]} Nf6 {[%emt 0:06:41]} 26. Qf3 {[%emt 0:00:16]} g6 {[%emt 0:00:10]} 27. g4 {[%emt 0:09:17]} Qe7 {[%emt 0:01:39]} 28. hxg6+ {[%emt 0:03:46]} fxg6 {[%emt 0:00:08]} 29. Qh3 {[%emt 0:01:03]} Qe6 {[%emt 0:01:05]} 30. f3 {[%emt 0:02:18]} h5 {[%emt 0:01:00]} 31. Nf5 {[%emt 0:00:50]} gxf5 {[%emt 0:00:31]} 32. exf5 {[%emt 0:00:14]} Qg8 {[%emt 0:00:26]} 33. Rg2 {[%emt 0:02:14]} Nbd5 {[%emt 0:08:08]} 34. Bc1 {[%emt 0:02:11]} Nxc3 {[%emt 0:06:28]} 35. g5 {[%emt 0:02:36]} Nxd1 {[%emt 0:01:01]} 36. gxf6 {[%emt 0:00:02]} Qf7 {[%emt 0:00:55]} 37. Rg6 {[%emt 0:00:07]} Kh8 {[%emt 0:02:21]} 38. Qxh5+ {[%emt 0:01:10]} Qh7 {[%emt 0:00:04]} 39. Qxh7+ {[%emt 0:00:54]} Kxh7 {[%emt 0:00:06]} 40. f7 {[%emt 0:00:21]} Rec8 {[%emt 0:00:07]} 41. f6 {[%emt 0:00:15]} 1-0

[Event "Chile-ch Women 2019"]
[Site "Santiago Las Condes"]
[Date "2019.02.15"]
[Round "6.2"]
[White "Manriquez Abarzua, Maria Belen"]
[Black "Gomez Barrera, Javiera Belen"]
[Result "0-1"]
[ECO "D00"]
[WhiteElo "1650"]
[BlackElo "1990"]
[Annotator "NA RC"]
[PlyCount "64"]
[EventDate "2019.02.12"]
[EventType "swiss"]
[EventCountry "CHI"]
[SourceTitle "playchess.com"]
[Source "ChessBase"]
[SourceQuality "1"]
[TimeControl "5400+30"]

1. d4 {[%emt 0:00:00]} Nf6 {[%emt 0:00:00]} 2. Nf3 {[%emt 0:00:00]} g6 {[%emt 0:00:34]} 3. Nc3 {[%emt 0:00:00]} d5 {[%emt 0:00:10]} 4. Bf4 {[%emt 0:00:00]} Bg7 {[%emt 0:00:15]} 5. Nb5 {[%emt 0:00:40] LiveBook: 93 Games} Na6 {[%emt 0:00:14]} 6. e3 {[%emt 0:00:18] D00: 1 d4 d5: Unusual lines} c6 {[%emt 0:02:19]} 7. Nc3 {[%emt 0:00:31]} Nc7 {[%emt 0:00:58]} (7... Nb8 8. h3 O-O 9. Be2 Nbd7 10. O-O Re8 11. Bh2 a5 12. Ne5 Nxe5 13. Bxe5 Ne4 14. Nxe4 Bxe5 15. dxe5 dxe4 16. Qd4 Qxd4 17. exd4 Rd8 18. Rad1 {0-1 (50) Melkumyan,H (2670)-Amin,B (2710) St Petersburg 2018}) 8. h3 {[%emt 0:00:44]} O-O {[%emt 0:01:39]} 9. Be2 {[%emt 0:02:01]} Re8 {[%emt 0:06:18]} 10. O-O {[%emt 0:04:04]} b6 {[%emt 0:17:29]} 11. Ne5 $146 {[%emt 0:06:11]} ({Predecessor:} 11. b4 Bb7 12. Rb1 Ne4 13. Qe1 {1-0 (46) Cuartas,J (2508)-Gomez Barrera,J (2063) Barcelona 2018}) 11... Bb7 {[%emt 0:00:22]} 12. h4 {[%emt 0:05:47]} h5 {[%emt 0:16:31]} 13. Bf3 {[%emt 0:17:45]} Ne6 {[%emt 0:15:58]} 14. Bh2 {[%emt 0:00:38]} Rc8 {[%emt 0:08:34]} 15. Ne2 {[%emt 0:07:57]} c5 {[%emt 0:08:57]} 16. c3 {[%emt 0:01:27]} Nd7 {[%emt 0:03:27]} 17. Nd3 $15 {[%emt 0:05:09]} Nc7 {[%emt 0:01:51]} 18. dxc5 {[%emt 0:05:09]} bxc5 {[%emt 0:01:27]} 19. Ndf4 {[%emt 0:10:53]} Ne5 {[%emt 0:02:03]} 20. Bg3 {[%emt 0:12:57]} Nxf3+ {[%emt 0:04:16]} 21. gxf3 {[%emt 0:00:02]} e5 {[%emt 0:00:21]} 22. Nd3 {[%emt 0:02:24]} Qe7 {[%emt 0:00:47]} 23. f4 {[%emt 0:04:29]} e4 {[%emt 0:00:25]} 24. Ne1 {[%emt 0:01:48]} f5 {[%emt 0:02:50]} 25. Kh2 {[%emt 0:04:09]} Bf6 {[%emt 0:00:46]} 26. Kh3 {[%emt 0:00:58]} Red8 {[%emt 0:00:36]} 27. Qb3 {[%emt 0:02:05]} Ba6 {[%emt 0:00:15]} 28. Qc2 {[%emt 0:01:59]} Ne6 {[%emt 0:00:50]} 29. Rg1 {[%emt 0:01:39]} d4 {[%emt 0:00:49]} 30. exd4 {[%emt 0:01:03]} cxd4 {[%emt 0:00:02]} 31. Bh2 {[%emt 0:00:29]} Kh7 {[%emt 0:01:33]} 32. Qa4 {[%emt 0:02:10]} Bxe2 {[%emt 0:00:12]} 0-1

[Event "Chile-ch Women 2019"]
[Site "Santiago Las Condes"]
[Date "2019.02.15"]
[Round "6.3"]
[White "Urrutia Cordova, Camila"]
[Black "Abarca Gonzalez, Damaris"]
[Result "0-1"]
[ECO "B28"]
[WhiteElo "1694"]
[BlackElo "2039"]
[Annotator "NA RC"]
[PlyCount "106"]
[EventDate "2019.02.12"]
[EventType "swiss"]
[EventCountry "CHI"]
[SourceTitle "playchess.com"]
[Source "ChessBase"]
[SourceQuality "1"]
[TimeControl "5400+30"]

1. e4 {[%emt 0:00:49]} c5 {[%emt 0:00:00]} 2. Nf3 {[%emt 0:00:05]} a6 {[%emt 0:00:00]} 3. d4 {[%emt 0:00:07]} cxd4 {[%emt 0:00:00]} 4. Nxd4 {[%emt 0:00:04]} e5 {[%emt 0:00:04]} 5. Nf3 {[%emt 0:00:06]} Nf6 {[%emt 0:00:07]} 6. Bc4 {[%emt 0:02:15]} Qc7 {[%emt 0:03:53]} 7. Bb3 {[%emt 0:04:11] B28: Sicilian: 2 Nf3 a6 (O'Kelly Variation)} Bc5 {[%emt 0:04:36]} (7... Bb4+ 8. Bd2 Be7 9. Bg5 O-O 10. Nc3 d6 11. Bxf6 Bxf6 12. Nd5 Qd8 13. Qd3 Nc6 14. O-O-O Be6 {1-0 (65) Jørgensen,P (2295)-Szabo,R (2331) ICCF email 2016}) 8. O-O $146 {[%emt 0:01:25]} ({Predecessor:} 8. Bg5 d6 9. Bxf6 gxf6 10. Nh4 Be6 11. Qf3 Qe7 12. Nc3 Nc6 13. Nd5 Bxd5 14. Bxd5 Nd4 {1-0 (35) Hessmer,D-Piastowski,K DDR 1981}) 8... O-O {[%emt 0:00:44]} 9. Nc3 {[%emt 0:01:42]} d6 {[%emt 0:01:33]} 10. Bg5 {[%emt 0:02:31]} Nbd7 {[%emt 0:01:26]} 11. h3 {[%emt 0:06:45]} b5 {[%emt 0:03:01]} 12. Nd5 {[%emt 0:09:41]} Qd8 {[%emt 0:05:16]} (12... Nxd5 $11 13. Bxd5 Bb7) 13. Re1 {[%emt 0:06:59]} h6 {[%emt 0:00:37]} 14. Bh4 {[%emt 0:01:49]} g5 {[%emt 0:06:42] [#]} 15. Bg3 {[%emt 0:01:30]} (15. Nxg5 $1 $16 Nxd5 16. Bxd5 hxg5 17. Qg4 (17. Bxa8 gxh4 18. Qg4+ Kh8 $17)) 15... Bb7 {[%emt 0:01:44]} 16. Nh2 {[%emt 0:09:31]} Nb6 {[%emt 0:07:42]} 17. Nxf6+ {[%emt 0:01:27]} Qxf6 {[%emt 0:00:09]} 18. Qh5 {[%emt 0:05:33]} Kg7 {[%emt 0:09:12]} 19. c3 {[%emt 0:04:28]} Qg6 {[%emt 0:03:45]} 20. Qe2 {[%emt 0:01:28]} Nd7 {[%emt 0:00:58]} 21. Bc2 {[%emt 0:02:02]} Nf6 {[%emt 0:01:33]} 22. Nf1 {[%emt 0:04:20]} Nh5 {[%emt 0:01:59]} 23. Rad1 {[%emt 0:03:24]} Rad8 {[%emt 0:01:14]} 24. Rd2 $11 {[%emt 0:05:06]} Nf4 {[%emt 0:05:22]} 25. Qd1 {[%emt 0:00:04]} h5 {[%emt 0:02:57]} 26. Kh1 {[%emt 0:05:00]} Rh8 {[%emt 0:04:50]} 27. Bh2 {[%emt 0:01:47]} h4 {[%emt 0:05:52]} 28. f3 {[%emt 0:01:43]} Qf6 {[%emt 0:06:21]} 29. Ne3 {[%emt 0:01:45]} Bxe3 {[%emt 0:02:03]} 30. Rxe3 {[%emt 0:00:07]} Rd7 {[%emt 0:01:45]} 31. a4 {[%emt 0:02:05]} Bc6 {[%emt 0:00:30]} 32. axb5 {[%emt 0:00:37]} axb5 {[%emt 0:00:12]} 33. b3 {[%emt 0:00:58]} Rhd8 {[%emt 0:01:04]} 34. Qf1 {[%emt 0:02:06]} d5 {[%emt 0:01:01]} 35. exd5 {[%emt 0:00:56]} Rxd5 {[%emt 0:01:06]} 36. Rxd5 {[%emt 0:00:31]} Rxd5 {[%emt 0:00:09]} 37. Be4 {[%emt 0:01:50]} Rd2 {[%emt 0:01:01]} 38. Bxf4 {[%emt 0:00:41]} exf4 {[%emt 0:01:06]} 39. Rd3 {[%emt 0:01:11]} Ra2 {[%emt 0:01:19]} 40. Bxc6 {[%emt 0:00:19]} Qxc6 {[%emt 0:00:02]} 41. Qg1 {[%emt 0:01:42]} Qe6 {[%emt 0:02:36]} 42. Qd4+ {[%emt 0:00:09]} Kg6 {[%emt 0:00:47]} 43. Qe4+ {[%emt 0:03:21]} Qxe4 {[%emt 0:03:49]} 44. fxe4 {[%emt 0:00:05]} Ra1+ {[%emt 0:00:31]} 45. Kh2 {[%emt 0:00:08]} Rb1 {[%emt 0:01:07]} 46. c4 {[%emt 0:00:36]} bxc4 {[%emt 0:00:08]} 47. bxc4 {[%emt 0:00:04]} Rc1 {[%emt 0:00:10]} 48. Rd6+ {[%emt 0:00:08]} Kg7 {[%emt 0:00:15]} 49. Rd4 {[%emt 0:02:10]} Kf6 {[%emt 0:00:37]} 50. Rd6+ {[%emt 0:03:24]} Ke7 {[%emt 0:00:06]} 51. e5 {[%emt 0:00:17]} Rxc4 {[%emt 0:00:07]} 52. Ra6 {[%emt 0:00:30]} Re4 {[%emt 0:00:25]} 53. Kg1 {[%emt 0:00:11]} Rxe5 {[%emt 0:00:08]} 0-1

[Event "Chile-ch Women 2019"]
[Site "Santiago Las Condes"]
[Date "2019.02.15"]
[Round "6.4"]
[White "Luna Benalcazar, Gianella"]
[Black "Arbunic Castro, Giovanna"]
[Result "0-1"]
[ECO "A42"]
[WhiteElo "1804"]
[BlackElo "1995"]
[Annotator "NA RC"]
[PlyCount "64"]
[EventDate "2019.02.12"]
[EventType "swiss"]
[EventCountry "CHI"]
[SourceTitle "playchess.com"]
[Source "ChessBase"]
[SourceQuality "1"]
[TimeControl "5400+30"]

1. d4 {[%emt 0:00:00]} g6 {[%emt 0:00:00]} 2. c4 {[%emt 0:00:00]} Bg7 {[%emt 0:00:00]} 3. Nf3 {[%emt 0:00:00]} d6 {[%emt 0:00:00]} 4. Nc3 {[%emt 0:00:10]} Nd7 {[%emt 0:04:25]} 5. e4 {[%emt 0:00:20]} e5 {[%emt 0:00:26]} 6. Be2 {[%emt 0:03:02]} Ne7 {[%emt 0:00:38]} 7. Bg5 {[%emt 0:06:54] A42: Modern Defence: Averbakh Variation} (7. O-O O-O 8. Re1 h6 9. Bf1 exd4 10. Nxd4 Nc6 11. Be3 Nde5 12. f3 Nxd4 13. Bxd4 Be6 14. Nd5 c5 15. Bc3 Nc6 16. Bxg7 Kxg7 {1-0 (42) Le,Q (2718)-Svidler,P (2759) Almaty 2016}) 7... f6 {[%emt 0:02:13]} 8. Be3 {[%emt 0:00:08]} f5 {[%emt 0:03:34]} 9. Ng5 {[%emt 0:14:08]} Nb6 $146 {[%emt 0:03:40]} ({Predecessor:} 9... Nf8 10. dxe5 Bxe5 11. Bd4 Nc6 12. Bxe5 Nxe5 13. f4 h6 14. Qd4 hxg5 15. fxe5 Ne6 16. Qd5 {0-1 (40) Snoeks,P (1530)-Roemhild,W (1696) Maastricht 2011}) 10. dxe5 {[%emt 0:15:43]} (10. c5 $18) 10... Bxe5 {[%emt 0:07:42]} 11. c5 {[%emt 0:16:41]} h6 {[%emt 0:02:46]} 12. cxb6 {[%emt 0:07:55]} hxg5 {[%emt 0:00:56]} 13. bxc7 {[%emt 0:04:50]} Qxc7 {[%emt 0:02:25]} 14. Nb5 {[%emt 0:06:26]} Qa5+ {[%emt 0:02:53] [#]} 15. Bd2 {[%emt 0:03:38]} ({White should try} 15. Kf1 $1 $16) 15... Qb6 {[%emt 0:02:55]} 16. Be3 {[%emt 0:03:35]} (16. Rc1 $16 d5 17. Bc3 (17. Bxg5 dxe4 18. Be3 Qd8 $16)) 16... Qa5+ {[%emt 0:00:19] [#]} 17. Qd2 {[%emt 0:02:05]} Qxd2+ {[%emt 0:00:20]} 18. Bxd2 {[%emt 0:00:51]} Kd7 {[%emt 0:06:29]} 19. exf5 {[%emt 0:03:33]} Nxf5 {[%emt 0:00:09]} 20. Bc3 {[%emt 0:02:20]} (20. Bxg5 $16 a6 21. Nc3) 20... Re8 $14 {[%emt 0:02:06]} 21. Bxe5 {[%emt 0:02:19]} Rxe5 {[%emt 0:00:06]} 22. Nc3 {[%emt 0:01:54]} b5 {[%emt 0:00:23]} 23. Kd2 {[%emt 0:02:15]} b4 {[%emt 0:00:51]} 24. Na4 {[%emt 0:03:13]} Bb7 {[%emt 0:00:20]} 25. f3 {[%emt 0:00:00]} Rae8 {[%emt 0:03:38]} 26. Rhe1 {[%emt 0:00:00]} Rd5+ {[%emt 0:01:02]} 27. Bd3 {[%emt 0:00:45]} Rxe1 {[%emt 0:00:34]} 28. Rxe1 {[%emt 0:00:24]} Ba6 {[%emt 0:00:05]} 29. Kc1 {[%emt 0:00:46]} Rxd3 {[%emt 0:02:26]} 30. Rd1 {[%emt 0:00:05]} Rxd1+ {[%emt 0:00:12]} 31. Kxd1 {[%emt 0:00:07]} Bb5 {[%emt 0:00:17]} 32. b3 {[%emt 0:00:10]} Bxa4 {[%emt 0:00:19]} 0-1